bitfinex-derivatives/quotes_ETHF0:USTF0_20250321
["timestamp","ask_amount","ask_price","bid_price","bid_amount"]
[1742587257941,7.47039295,1976.5,1976.4,2.37508]
[1742587258251,5.67147,1976.5,1976.4,2.37508]
[1742587258543,4.6591,1976.5,1976.4,2.37508]
[1742587259547,4.6591,1976.5,1976.4,3.01718]
[1742587260447,5.67147,1976.5,1976.4,3.01718]
[1742587260953,4.6591,1976.5,1976.4,3.01718]
[1742587261450,4.6591,1976.5,1976.3,3.17983]
[1742587261451,1.01247,1976.4,1976.3,1.01244]
[1742587261648,2.98067,1976.4,1976.3,1.01244]
[1742587261854,1.01247,1976.3,1976.2,2.35518763]
[1742587262046,6.25777,1976.3,1976.2,1.02011763]
[1742587263253,9.46557,1976.3,1976.2,0.00759763]
[1742587263754,9.54940841,1976.3,1976.2,0.00759763]
[1742587263953,10.40896169,1976.3,1976.2,0.00759763]
[1742587264148,10.49279741,1976.3,1976.2,0.00759763]
[1742587264349,10.49279754,1976.3,1976.2,0.00759763]
[1742587264546,10.40896169,1976.3,1976.2,0.00759763]
[1742587265347,10.40391748,1976.3,1976.2,0.00759763]
[1742587266555,11.34616749,1976.3,1976.2,0.00759763]
[1742587267251,8.13836749,1976.3,1976.2,0.00759763]
[1742587267458,7.20002001,1976.3,1976.2,0.00759763]
[1742587267759,9.46557,1976.3,1976.2,0.00759763]
[1742587268855,10.40726207,1976.3,1976.2,0.00759763]
[1742587269449,9.46557,1976.3,1976.2,0.00759763]
[1742587270457,6.21757,1976.3,1976.2,1.02011763]
[1742587270661,3.00977,1976.3,1976.2,2.30191763]
[1742587270953,4.5666,1976.3,1976.2,2.30191763]
[1742587271153,5.968,1976.4,1976.3,1.01247]
[1742587271359,9.217,1976.4,1976.3,2.29427]
[1742587271856,9.217,1976.4,1976.3,5.50207]
[1742587272559,1.01231,1976.7,1976.3,4.4896]
[1742587272750,4.26334,1976.6,1976.5,1.01237]
[1742587273058,4.26334,1976.6,1976.5,3.06237]
[1742587274346,3.251,1976.6,1976.5,3.06237]
[1742587274961,4.6143,1976.6,1976.5,3.06237]
[1742587276158,5.62662,1976.6,1976.5,3.06237]
[1742587284269,8.83442,1976.6,1976.5,1.3654]
[1742587284468,5.62662,1976.6,1976.5,2.37777]
[1742587289270,8.83442,1976.6,1976.5,2.37777]
[1742587291474,7.8221,1976.6,1976.5,2.37777]
[1742587291671,4.6143,1976.6,1976.5,2.37777]
[1742587291870,5.62662,1976.6,1976.5,2.37777]
[1742587293178,6.9802,1976.9,1976.8,1.01222]
[1742587293378,6.49775071,1976.9,1976.8,1.01222]
[1742587293672,3.25775071,1976.9,1976.8,1.01222]
[1742587293879,5.48555071,1976.9,1976.8,1.01222]
[1742587294079,6.49772071,1976.9,1976.8,2.37802]
[1742587294283,5.55627,1976.9,1976.8,2.37802]
[1742587297871,1.01222,1976.8,1976.7,1.329]
[1742587298075,2.36482,1976.8,1976.7,3.69777]
[1742587300574,2.36482,1976.8,1976.2,17.38994763]
[1742587300575,2.5307,1976.7,1976.3,2.53109]
[1742587300780,1.01242,1976.5,1976.4,1.01234]
[1742587300983,1.01242,1976.5,1976.4,2.31354]
[1742587301582,2.30046,1976.6,1976.5,1.01237]
[1742587301883,2.30046,1976.6,1976.5,2.31357]
[1742587305978,2.30046,1976.6,1976.5,1.3012]
[1742587306177,2.30046,1976.6,1976.5,2.31357]
[1742587308380,4.25231,1976.7,1976.6,1.01232]
[1742587308578,5.53051,1976.7,1976.6,2.32582]
[1742587311783,3.24,1976.7,1976.6,2.32582]
[1742587312385,4.25227,1976.7,1976.6,2.32582]
[1742587312582,5.53737,1976.7,1976.6,2.32582]
[1742587313682,5.53737,1976.7,1976.6,1.3135]
[1742587313885,1.01242,1976.4,1976.3,2.34302]
[1742587314996,1.01242,1976.4,1976.3,2.34307]
[1742587315192,2.41322,1976.4,1976.3,3.65397]
[1742587316089,2.41322,1976.4,1976.2,0.00759763]
[1742587316090,1.01247,1976.3,1976.2,0.00759763]
[1742587316397,5.65227,1976.3,1976.2,1.31849763]
[1742587316599,5.65227,1976.3,1976.2,2.33101763]
[1742587316793,6.59559308,1976.3,1976.2,2.33101763]
[1742587316997,6.59559308,1976.3,1976.2,1.31849763]
[1742587317295,5.65227,1976.3,1976.2,2.33101763]
[1742587317693,5.65227,1976.3,1976.2,1.31849763]
[1742587317887,5.65227,1976.3,1976.2,2.33101763]
[1742587318496,5.65227,1976.3,1976.2,1.31849763]
[1742587319902,5.65227,1976.3,1976.2,2.33101763]
[1742587321200,5.65227,1976.3,1976.2,1.31849763]
[1742587321903,5.65227,1976.3,1976.2,0.00759763]
[1742587322594,5.65227,1976.3,1976.2,1.41519763]
[1742587325005,8.86007,1976.3,1976.2,1.41519763]
[1742587325195,8.86007,1976.3,1976.2,0.00759763]
[1742587326198,9.80192737,1976.3,1976.2,0.00759763]
[1742587326398,6.59412737,1976.3,1976.2,0.00759763]
[1742587326605,9.80192737,1976.3,1976.2,1.29959763]
[1742587327203,8.86007,1976.3,1976.2,1.29959763]
[1742587327705,8.86007,1976.3,1976.2,0.00759763]
[1742587328297,9.8017866,1976.3,1976.2,0.00759763]
[1742587328499,10.73900637,1976.3,1976.2,0.00759763]
[1742587328700,10.7390071,1976.3,1976.2,0.00759763]
[1742587329105,10.65511002,1976.3,1976.2,0.00759763]
[1742587329409,9.8856224,1976.3,1976.2,0.00759763]
[1742587329707,9.8017866,1976.3,1976.2,0.00759763]
[1742587330201,8.86007,1976.3,1976.2,0.00759763]
[1742587330407,5.65227,1976.3,1976.2,0.00759763]
[1742587330602,8.86007,1976.3,1976.2,0.00759763]
[1742587330810,8.86007,1976.3,1976.2,1.02011763]
[1742587331018,8.86107,1976.3,1976.2,1.69341763]
[1742587331397,53.18178,1976.5,1976.2,1.69341763]
[1742587331398,50.6608,1976.5,1976.2,1.69341763]
[1742587331598,1.01247,1976.4,1976.3,3.00022]
[1742587331910,4.25247,1976.4,1976.3,3.00022]
[1742587332911,5.56927,1976.4,1976.3,3.00022]
[1742587339810,5.56927,1976.4,1976.3,1.9878]
[1742587340015,5.56927,1976.4,1976.3,3.00027]
[1742587340209,5.56927,1976.4,1976.3,1.3075]
[1742587341209,6.51174464,1976.4,1976.3,1.3075]
[1742587342415,7.36631583,1976.4,1976.3,1.3075]
[1742587343912,8.04061583,1976.4,1976.3,1.3075]
[1742587345019,1.01247,1976.3,1976.2,0.00759763]
[1742587345215,7.05374119,1976.3,1976.2,1.30159763]
[1742587345412,7.99621583,1976.3,1976.2,1.30159763]
[1742587345815,4.78841583,1976.3,1976.2,1.30159763]
[1742587346115,7.99621583,1976.3,1976.2,1.30159763]
[1742587346317,7.99621583,1976.3,1976.2,0.00759763]
[1742587347820,7.14164464,1976.3,1976.2,0.00759763]
[1742587348013,3.27774464,1976.3,1976.2,0.00759763]
[1742587348219,3.27774464,1976.3,1976.2,1.02001763]
[1742587348417,1.01247,1976.3,1976.2,1.02001763]
[1742587349722,1.01247,1976.3,1976.2,2.31881763]
[1742587349921,2.30577,1976.3,1976.2,2.31881763]
[1742587356221,1.01232,1976.4,1976.3,1.01237]
[1742587356519,4.25232,1976.4,1976.3,3.76337]
[1742587356717,3.8658,1976.7,1976.6,1.01222]
[1742587356918,5.76520856,1976.7,1976.6,1.01222]
[1742587357125,5.76520856,1976.7,1976.6,1.67202]
[1742587357327,6.70868786,1976.7,1976.6,1.67202]
[1742587358025,7.99178786,1976.7,1976.6,1.67202]
[1742587358326,7.99178786,1976.7,1976.6,0.6598]
[1742587358728,1.01232,1976.4,1976.3,0.6963]
[1742587359028,4.25232,1976.4,1976.3,1.3561]
[1742587359325,5.53542,1976.4,1976.3,1.3561]
[1742587359825,5.53542,1976.4,1976.3,2.36845]
[1742587360417,3.24,1976.4,1976.3,2.36845]
[1742587361226,4.25232,1976.4,1976.3,2.36845]
[1742587364624,5.64952,1976.4,1976.3,2.36845]
[1742587366433,5.64952,1976.4,1976.2,0.00759763]
[1742587366434,1.01237,1976.3,1976.2,0.00759763]
[1742587366623,2.38387,1976.3,1976.2,0.00759763]
[1742587367122,2.38387,1976.3,1976.2,1.02001763]
[1742587369134,2.38387,1976.3,1976.2,0.00759763]
[1742587369335,3.07827,1976.3,1976.2,1.29769763]
[1742587370028,6.28607,1976.3,1976.2,1.29769763]
[1742587370426,3.07827,1976.3,1976.2,1.29769763]
[1742587370733,7.14101188,1976.3,1976.2,0.00759763]
[1742587370930,6.28607,1976.3,1976.2,0.00759763]
[1742587371233,7.22955902,1976.3,1976.2,0.00759763]
[1742587372628,6.28607,1976.3,1976.2,0.00759763]
[1742587374038,7.22926925,1976.3,1976.2,0.00759763]
[1742587374233,6.28607,1976.3,1976.2,0.00759763]
[1742587375237,6.36990517,1976.3,1976.2,0.00759763]
[1742587375730,7.31293536,1976.3,1976.2,0.00759763]
[1742587376339,7.22910019,1976.3,1976.2,0.00759763]
[1742587376537,7.31293163,1976.3,1976.2,0.00759763]
[1742587377243,6.36990182,1976.3,1976.2,0.00759763]
[1742587377431,6.28607,1976.3,1976.2,0.00759763]
[1742587377631,6.36990174,1976.3,1976.2,0.00759763]
[1742587378034,7.22435294,1976.3,1976.2,0.00759763]
[1742587378337,7.14052096,1976.3,1976.2,0.00759763]
[1742587378538,9.1758,1976.6,1976.2,1.02001763]
[1742587378735,3.239,1976.4,1976.3,6.19247]
[1742587379337,3.239,1976.4,1976.3,2.98467]
[1742587379638,1.01231,1976.5,1976.4,1.01232]
[1742587379846,4.25231,1976.5,1976.4,2.31002]
[1742587380039,4.25231,1976.5,1976.4,1.2977]
[1742587381143,5.57721,1976.5,1976.4,1.2977]
[1742587381345,5.57721,1976.5,1976.4,2.31002]
[1742587381739,1.67181,1976.7,1976.4,1.2977]
[1742587381948,4.25222,1976.6,1976.5,1.9525]
[1742587383045,4.25222,1976.6,1976.5,2.96474]
[1742587383245,4.25222,1976.6,1976.5,1.9525]
[1742587383439,4.25222,1976.6,1976.5,2.96477]
[1742587384041,4.25222,1976.6,1976.5,1.9525]
[1742587384241,4.25222,1976.6,1976.5,2.96477]
[1742587384554,4.25222,1976.6,1976.5,1.9525]
[1742587385148,4.25222,1976.6,1976.5,2.96477]
[1742587386652,4.25222,1976.6,1976.5,1.9525]
[1742587386848,4.25222,1976.6,1976.5,2.96477]
[1742587388948,5.59432,1976.6,1976.5,2.96477]
[1742587391553,5.59432,1976.6,1976.5,1.9525]
[1742587391751,5.59432,1976.6,1976.5,2.96477]
[1742587392048,5.59432,1976.6,1976.5,1.9525]
[1742587393653,5.59432,1976.6,1976.5,2.96477]
[1742587394851,5.59432,1976.6,1976.5,1.9525]
[1742587398260,5.59432,1976.6,1976.5,2.96477]
[1742587398451,5.59432,1976.6,1976.5,1.9525]
[1742587399254,5.59432,1976.6,1976.5,2.96477]
[1742587400552,5.59432,1976.6,1976.5,1.9525]
[1742587400952,5.59432,1976.6,1976.5,2.96477]
[1742587402061,5.59432,1976.6,1976.5,1.9525]
[1742587402757,5.59432,1976.6,1976.5,1.29]
[1742587402954,6.23512,1976.6,1976.5,1.29]
[1742587404965,5.59432,1976.6,1976.5,1.29]
[1742587407770,6.53772544,1976.6,1976.5,1.29]
[1742587409267,5.59432,1976.6,1976.5,1.29]
[1742587411865,7.39458225,1976.6,1976.5,1.29]
[1742587412058,1.01227,1976.5,1976.4,0.6909]
[1742587412265,2.95027,1976.5,1976.4,1.9858]
[1742587413377,2.95027,1976.5,1976.4,1.2949]
[1742587415469,3.80581969,1976.5,1976.4,1.2949]
[1742587416078,4.75004482,1976.5,1976.4,1.2949]
[1742587416374,6.26845482,1976.5,1976.2,0.67409763]
[1742587416569,1.01237,1976.3,1976.2,0.67409763]
[1742587417880,2.34317,1976.3,1976.2,2.00179763]
[1742587419570,2.34317,1976.3,1976.2,1.33529763]
[1742587419773,3.28703971,1976.3,1976.2,1.33529763]
[1742587423179,2.34317,1976.3,1976.2,1.33529763]
[1742587423374,3.19812157,1976.3,1976.2,1.33529763]
[1742587423583,2.34317,1976.3,1976.2,1.33529763]
[1742587427274,1.01237,1976.3,1976.2,2.34771763]
[1742587428983,2.39487,1976.3,1976.2,2.34771763]
[1742587429173,1.3825,1976.3,1976.2,2.34771763]
[1742587429380,4.25136,1976.4,1976.3,1.01232]
[1742587429578,4.25136,1976.4,1976.3,6.88172]
[1742587429979,5.63386,1976.4,1976.3,6.88172]
[1742587431089,5.63386,1976.4,1976.3,3.67392]
[1742587431587,5.63386,1976.4,1976.3,2.6616]
[1742587431889,7.16012071,1976.4,1976.3,1.3116]
[1742587432290,7.24865809,1976.4,1976.3,1.3116]
[1742587432588,8.10329404,1976.4,1976.3,1.3116]
[1742587435397,6.57695809,1976.4,1976.3,1.3116]
[1742587438288,5.63386,1976.4,1976.3,1.3116]
[1742587438890,6.29276,1976.4,1976.3,1.3116]
[1742587439487,1.01237,1976.3,1976.2,0.00759763]
[1742587439693,2.95877,1976.3,1976.2,0.00759763]
[1742587440100,3.90260157,1976.3,1976.2,1.35959763]
[1742587440693,3.90260157,1976.3,1976.2,0.00759763]
[1742587440902,3.22920157,1976.3,1976.2,1.02001763]
[1742587441196,1.273,1976.3,1976.2,1.02001763]
[1742587441389,2.28537,1976.3,1976.2,1.02001763]
[1742587441588,2.28537,1976.3,1976.2,2.37201763]
[1742587441789,1.01237,1976.3,1976.2,1.35959763]
[1742587441984,1.01237,1976.3,1976.2,2.37201763]
[1742587442697,1.01237,1976.3,1976.2,1.35959763]
[1742587442898,2.37137,1976.3,1976.2,1.35959763]
[1742587447401,2.37137,1976.3,1976.2,0.00759763]
[1742587447700,6.27047,1976.3,1976.2,0.00759763]
[1742587447889,4.00695938,1976.3,1976.2,0.00759763]
[1742587448493,3.31565938,1976.3,1976.2,0.00759763]
[1742587448706,3.31565938,1976.3,1976.2,1.40289763]
[1742587449403,2.37137,1976.3,1976.2,1.40289763]
[1742587450606,3.06917,1976.3,1976.2,1.40289763]
[1742587450810,3.31555399,1976.3,1976.2,1.40289763]
[1742587451210,2.37137,1976.3,1976.2,1.40289763]
[1742587452911,3.22689398,1976.3,1976.2,1.40289763]
[1742587453110,3.92709398,1976.3,1976.2,1.40289763]
[1742587453613,4.87122717,1976.3,1976.2,1.40289763]
[1742587454406,4.17102717,1976.3,1976.2,1.40289763]
[1742587455902,4.17102717,1976.3,1976.2,2.41531763]
[1742587456105,0.94413319,1976.3,1976.2,2.41531763]
[1742587456411,57.01328,1976.5,1976.4,1.01232]
[1742587457006,10.21828,1976.5,1976.4,3.06902]
[1742587459000,10.21828,1976.5,1976.4,2.0567]
[1742587459410,10.21828,1976.5,1976.4,3.06902]
[1742587459815,10.21828,1976.5,1976.4,2.0567]
[1742587460117,10.21828,1976.5,1976.4,3.06902]
[1742587461722,4.25028,1976.5,1976.4,3.06902]
[1742587462219,3.238,1976.5,1976.4,3.06902]
[1742587462420,4.25027,1976.5,1976.4,3.06902]
[1742587468818,1.2814,1976.6,1976.4,3.06902]
[1742587468819,0.669,1976.8,1976.5,1.01227]
[1742587469024,4.25017,1976.7,1976.6,2.99272]
[1742587469235,1.01217,1976.7,1976.6,2.99272]
[1742587469426,2.30312,1976.8,1976.7,1.01217]
[1742587469729,5.54112,1976.8,1976.7,2.96807]
[1742587472432,5.54112,1976.8,1976.7,6.17587]
[1742587473826,5.54112,1976.8,1976.7,2.96807]
[1742587474728,5.54112,1976.8,1976.7,1.9559]
[1742587474932,5.54112,1976.8,1976.7,2.96807]
[1742587476030,5.54112,1976.8,1976.7,1.9559]
[1742587476222,5.54112,1976.8,1976.5,4.22007]
[1742587476223,1.01222,1976.6,1976.5,4.22007]
[1742587476425,4.24922,1976.6,1976.5,4.22007]
[1742587477327,4.24922,1976.6,1976.5,3.2078]
[1742587477526,5.64582,1976.6,1976.5,5.61707]
[1742587477934,5.64582,1976.6,1976.5,4.6048]
[1742587478235,5.64582,1976.6,1976.5,5.61707]
[1742587478534,5.64582,1976.6,1976.5,4.6048]
[1742587479734,5.64582,1976.6,1976.5,5.61707]
[1742587481135,5.64582,1976.6,1976.5,4.6048]
[1742587481937,5.64582,1976.6,1976.5,5.61707]
[1742587483539,3.2078,1977.0,1976.9,1.01206]
[1742587483735,1.3789,1977.1,1977.0,1.01201]
[1742587484031,2.88169761,1977.4,1977.0,1.01201]
[1742587484032,3.237,1977.5,1977.4,1.01181]
[1742587484440,4.24876,1977.5,1977.4,1.71871]
[1742587485427,4.24876,1977.5,1977.4,3.03141]
[1742587486735,5.58411,1977.6,1977.5,1.01176]
[1742587486941,5.58411,1977.6,1977.5,5.53226]
[1742587487238,4.24871,1977.6,1977.5,5.53226]
[1742587487441,1.3354,1977.7,1977.6,1.01171]
[1742587487741,5.5841,1977.7,1977.6,2.32441]
[1742587490031,2.3471,1977.7,1977.6,2.32441]
[1742587490240,5.5831,1977.7,1977.6,2.32441]
[1742587490441,2.3471,1977.7,1977.6,2.32441]
[1742587490630,4.24764,1977.8,1977.7,1.01161]
[1742587490939,5.60114,1977.8,1977.7,1.64861]
[1742587491439,4.24758,1977.9,1977.8,1.01155]
[1742587491633,4.24758,1977.9,1977.8,3.02835]
[1742587491838,5.57728,1977.9,1977.8,3.02835]
[1742587492029,5.57725,1977.9,1977.8,3.02835]
[1742587492342,47.79851,1978.0,1977.9,1.01155]
[1742587492531,51.03451,1978.0,1977.9,2.37205]
[1742587492732,1.01151,1978.0,1977.9,2.37205]
[1742587493440,1.01151,1978.0,1977.9,5.57985]
[1742587494239,0.641,1978.4,1978.3,1.01135]
[1742587494542,5.2248,1978.4,1978.3,1.01135]
[1742587494939,6.2361,1978.4,1978.3,1.324]
[1742587495344,6.2361,1978.4,1978.3,2.33535]
[1742587495645,6.2361,1978.4,1978.3,1.324]
[1742587495843,6.2361,1978.4,1978.3,2.33535]
[1742587496141,6.2361,1978.4,1978.3,1.324]
[1742587496641,6.2361,1978.4,1978.3,2.33535]
[1742587496947,6.2361,1978.4,1978.3,1.324]
[1742587498439,1.0114,1978.2,1978.1,0.7046]
[1742587498640,1.0114,1978.2,1978.1,2.0722]
[1742587498834,1.0114,1978.2,1978.1,3.08365]
[1742587499247,1.0114,1978.2,1978.1,2.0722]
[1742587499845,4.2464,1978.2,1978.1,2.0722]
[1742587500034,6.4428,1978.2,1977.8,4.21939]
[1742587500240,1.0115,1978.0,1977.9,1.3676]
[1742587500642,3.0703,1978.0,1977.9,1.3676]
[1742587502346,6.3053,1978.0,1977.9,1.3676]
[1742587503550,6.3053,1978.0,1977.9,2.37915]
[1742587504047,5.6312,1978.0,1977.9,1.3676]
[1742587504237,5.6312,1978.0,1977.9,2.37915]
[1742587505241,4.2465,1978.0,1977.9,2.37915]
[1742587505444,1.0115,1978.0,1977.9,2.37915]
[1742587506241,2.4071,1978.1,1978.0,1.0115]
[1742587506449,2.4071,1978.1,1978.0,2.3434]
[1742587507147,0.6915,1978.4,1978.1,2.52852]
[1742587507350,4.5633,1978.3,1978.2,6.87553]
[1742587507551,5.57469,1978.3,1978.2,5.56043]
[1742587507953,1.3283,1978.3,1978.2,5.56043]
[1742587508154,4.24632,1978.4,1978.3,1.01135]
[1742587509948,4.5633,1978.5,1978.4,1.0113]
[1742587510249,9.1758,1979.1,1978.4,3.2078]
[1742587510445,9.1758,1979.1,1978.8,3.2078]
[1742587510446,1.9661,1979.1,1978.8,3.2078]
[1742587510642,1.276,1979.0,1978.8,3.2078]
[1742587510855,2.28701,1979.0,1978.8,3.21539763]
[1742587511044,2.28701,1979.0,1978.8,4.22644763]
[1742587511351,1.276,1978.9,1978.8,4.22644763]
[1742587511553,2.28704,1978.9,1978.8,4.22644763]
[1742587512248,1.276,1978.9,1978.8,4.22644763]
[1742587512456,2.28704,1978.9,1978.8,4.22644763]
[1742587512645,2.28704,1978.9,1978.8,3.21539763]
[1742587512951,2.28704,1978.9,1978.8,4.22648763]
[1742587513154,2.28704,1978.9,1978.8,3.21539763]
[1742587513343,2.28704,1978.9,1978.8,4.22648763]
[1742587513856,1.276,1978.9,1978.8,4.22648763]
[1742587514956,0.07905138,1979.2,1979.1,1.01094]
[1742587515149,5.73476138,1979.2,1979.0,1.01096]
[1742587515348,2.42174,1979.1,1978.9,1.01101]
[1742587515552,1.4108,1979.0,1978.9,1.01101]
[1742587516549,0.07905138,1979.2,1979.1,1.01094]
[1742587516748,49.993,1979.7,1979.4,1.01077]
[1742587516947,2.36872,1979.6,1979.2,3.2078]
[1742587517148,3.8754,1979.8,1979.3,2.52707]
[1742587517358,3.03622,1979.8,1979.6,1.01064]
[1742587517657,1.358,1979.7,1979.5,3.2078]
[1742587517862,2.36866,1979.7,1979.5,4.92319]
[1742587518157,3.242,1979.9,1979.5,3.9125]
[1742587518353,2.3686,1979.8,1979.5,3.9125]
[1742587518554,1.358,1979.7,1979.5,4.92321]
[1742587518754,1.01068,1979.6,1979.5,4.92321]
[1742587518954,2.36865,1979.7,1979.6,1.01068]
[1742587519161,1.358,1979.7,1979.5,4.92319]
[1742587519353,1.01063,1979.7,1979.6,1.3845]
[1742587519956,1.01063,1979.7,1979.6,2.39518]
[1742587520255,1.01063,1979.7,1979.6,1.3845]
[1742587521666,1.01068,1979.6,1979.5,1.2804]
[1742587522552,1.01084,1979.3,1979.2,0.6966]
[1742587522751,1.01084,1979.3,1979.2,1.977]
[1742587523667,1.01084,1979.3,1979.2,1.2804]
[1742587523668,4.25284,1979.3,1979.2,1.2804]
[1742587524760,1.01094,1979.1,1979.0,1.3969]
[1742587524956,1.01094,1979.1,1979.0,2.7638]
[1742587525158,1.01094,1979.1,1979.0,1.3669]
[1742587525457,3.24,1979.1,1978.8,0.00759763]
[1742587525660,1.01104,1978.9,1978.8,1.37449763]
[1742587526761,4.25404,1978.9,1978.8,0.00759763]
[1742587527259,4.90904,1978.9,1978.8,0.00759763]
[1742587534964,1.01119,1978.6,1978.5,1.3137]
[1742587535163,4.24919,1978.6,1978.5,1.3137]
[1742587535465,1.0113,1978.4,1978.3,0.6396]
[1742587535661,4.2523,1978.4,1978.3,2.0446]
[1742587539061,4.2523,1978.4,1978.3,1.405]
[1742587539569,5.5641,1978.4,1978.3,1.405]
[1742587539870,6.2497,1978.4,1978.3,1.405]
[1742587546074,6.2497,1978.4,1978.3,2.41635]
[1742587546272,5.5641,1978.4,1978.3,1.405]
[1742587556974,1.01168,1977.7,1977.6,3.2078]
[1742587557676,1.01176,1977.5,1977.4,10.09158]
[1742587558978,1.01176,1977.5,1977.4,11.37358]
[1742587560782,1.01176,1977.5,1977.4,4.4898]
[1742587560977,1.01176,1977.5,1977.4,5.50161]
[1742587561677,2.36576,1977.5,1977.4,1.282]
[1742587562278,3.04706,1977.5,1977.4,1.282]
[1742587562880,1.01181,1977.4,1977.3,0.00757805]
[1742587563074,5.60081,1977.4,1977.3,0.00757805]
[1742587563578,8.80861,1977.4,1977.3,0.00757805]
[1742587563780,9.50721,1977.4,1977.3,0.00757805]
[1742587564588,9.59099247,1977.4,1977.3,0.00757805]
[1742587565089,9.59099113,1977.4,1977.3,0.00757805]
[1742587565380,9.59099114,1977.4,1977.3,0.00757805]
[1742587569987,9.59099287,1977.4,1977.3,0.00757805]
[1742587571589,9.50721,1977.4,1977.3,0.00757805]
[1742587577183,4.21961,1977.4,1977.3,1.01943805]
[1742587577489,5.05789,1977.9,1977.5,2.5294]
[1742587577490,3.2078,1977.9,1977.5,2.5294]
[1742587577692,4.25066,1977.7,1977.6,1.302]
[1742587577882,3.239,1977.7,1977.6,2.31371]
[1742587578088,4.25066,1977.7,1977.6,2.31371]
[1742587578282,4.25066,1977.7,1977.6,3.59411]
[1742587578494,4.25066,1977.7,1977.6,2.5824]
[1742587596302,5.57626,1977.7,1977.6,2.5824]
[1742587603308,1.01181,1977.4,1977.3,3.21537805]
[1742587603605,1.01181,1977.4,1977.3,0.65577805]
[1742587604708,2.38811,1977.4,1977.3,2.06507805]
[1742587605911,2.38811,1977.4,1977.3,3.07693805]
[1742587606110,1.01181,1977.4,1977.3,3.07693805]
[1742587606710,5.6231,1977.5,1977.4,1.01181]
[1742587607011,5.6231,1977.5,1977.4,1.4093]
[1742587617415,1.01181,1977.4,1977.3,0.00757805]
[1742587617610,1.01201,1977.0,1976.9,1.3058]
[1742587617816,4.24701,1977.0,1976.9,1.3058]
[1742587618211,4.24701,1977.0,1976.8,1.2882]
[1742587618212,1.01206,1976.9,1976.8,1.2882]
[1742587618418,2.33236,1976.9,1976.8,1.2882]
[1742587618613,1.01212,1976.8,1976.7,11.97377958]
[1742587618810,5.56742,1976.8,1976.7,10.71243763]
[1742587619012,6.50561061,1976.8,1976.7,9.70693408]
[1742587619320,1.01232,1976.4,1976.3,13.83363406]
[1742587619616,4.24732,1976.4,1976.3,13.83363406]
[1742587619804,4.24732,1976.4,1976.3,11.89673406]
[1742587620006,5.55452,1976.4,1976.3,11.89673406]
[1742587622109,5.55452,1976.4,1976.3,13.21823406]
[1742587623624,5.63834665,1976.4,1976.3,11.89673406]
[1742587623817,1.01237,1976.3,1976.2,0.00757805]
[1742587624116,6.31230332,1976.3,1976.2,0.00757805]
[1742587624306,9.46447,1976.3,1976.2,0.00757805]
[1742587624513,6.25667,1976.3,1976.2,0.00757805]
[1742587624816,9.54830163,1976.3,1976.2,0.00757805]
[1742587627624,6.34050163,1976.3,1976.2,0.00757805]
[1742587628122,9.54830163,1976.3,1976.2,0.00757805]
[1742587628724,9.46447,1976.3,1976.2,0.00757805]
[1742587628920,9.54830609,1976.3,1976.2,0.00757805]
[1742587630424,9.54830351,1976.3,1976.2,0.00757805]
[1742587631025,6.34050351,1976.3,1976.2,0.00757805]
[1742587631229,9.54830351,1976.3,1976.2,0.00757805]
[1742587631420,6.34050351,1976.3,1976.2,1.33617805]
[1742587631723,9.54830351,1976.3,1976.2,1.33617805]
[1742587632526,6.34050351,1976.3,1976.2,1.33617805]
[1742587633223,6.34050351,1976.3,1976.2,0.00757805]
[1742587633924,6.34050195,1976.3,1976.2,0.00757805]
[1742587634126,9.54830195,1976.3,1976.2,0.00757805]
[1742587635528,9.54830534,1976.3,1976.2,0.00757805]
[1742587636629,9.54830787,1976.3,1976.2,0.00757805]
[1742587637228,9.54830632,1976.3,1976.2,0.00757805]
[1742587640621,9.54830632,1976.3,1976.2,8.05e-06]
[1742587643628,9.46447,1976.3,1976.2,8.05e-06]
[1742587643829,1.01253,1976.0,1975.9,1.3504]
[1742587644031,7.54117578,1976.0,1975.9,1.3504]
[1742587644226,54.34317578,1976.0,1975.9,1.3504]
[1742587644626,56.31237578,1976.0,1975.9,1.3504]
[1742587645225,56.22853,1976.0,1975.9,1.3504]
[1742587645436,56.31238339,1976.0,1975.9,1.3504]
[1742587647027,55.62938223,1976.0,1975.9,1.3504]
[1742587648637,55.62937627,1976.0,1975.9,1.3504]
[1742587649930,1.01258,1975.9,1975.8,0.00757805]
[1742587650134,2.32728,1975.9,1975.8,1.42137805]
[1742587650341,2.41113418,1975.9,1975.8,1.42137805]
[1742587650940,3.26552295,1975.9,1975.8,8.05e-06]
[1742587651141,3.93232295,1975.9,1975.8,8.05e-06]
[1742587651838,3.93233664,1975.9,1975.8,8.05e-06]
[1742587652636,2.53184,1975.6,1975.2,0.6379]
[1742587652829,1.01294,1975.2,1975.1,3.2078]
[1742587653035,3.238,1975.2,1975.1,4.22075]
[1742587653239,4.25094,1975.2,1975.1,4.22075]
[1742587654439,4.25094,1975.2,1975.1,5.60865]
[1742587656935,4.25094,1975.2,1975.1,1.3879]
[1742587657339,4.25094,1975.2,1975.1,2.40089]
[1742587658039,4.25094,1975.2,1975.1,1.3879]
[1742587658244,4.25094,1975.2,1975.1,2.40089]
[1742587660341,4.25094,1975.2,1975.1,1.3879]
[1742587660644,4.25094,1975.2,1975.1,2.40089]
[1742587661039,4.25094,1975.2,1975.1,1.3879]
[1742587661741,4.25094,1975.2,1975.1,2.40089]
[1742587664747,3.238,1975.2,1975.1,2.40089]
[1742587664945,4.25094,1975.2,1975.1,2.40089]
[1742587665145,3.238,1975.2,1975.1,2.40089]
[1742587665344,4.25094,1975.2,1975.1,2.40089]
[1742587665743,0.00757805,1975.3,1975.2,1.01294]
[1742587665943,3.24557805,1975.3,1975.2,2.31824]
[1742587666446,4.25845805,1975.3,1975.2,2.31824]
[1742587667149,4.25845805,1975.3,1975.2,3.00954]
[1742587672140,4.25845805,1975.3,1975.2,1.9966]
[1742587672852,4.25845805,1975.3,1975.2,3.00954]